Cogmind - Beta 10.2 @@@ ROGUE MODE // 2021.01.08 @ 13:32:32 Player: Luigi Panache Result: Destroyed by as-56707 with Assembled Blade Performance ------------- Evolutions (0) 0 Regions Visited (2) 400 Robots Destroyed (24) 120 Value Destroyed (550) 550 Prototype IDs (0) 0 Alien Tech Used (0) 0 Bonus (0) 0 TOTAL SCORE: 1070 Bonus ------- None Cogmind --------- Core Integrity 0/250 Matter 260/300 Energy 100/100 System Corruption 1% Temperature Cool (0) Movement Core (1100) Ox21 Location -10/Mines Parts ------- > --- POWER (1) -------- (None) > --- PROPULSION (2) --- (None) > --- UTILITY (2) ------ High-capacity Storage Unit High-capacity Storage Unit > --- WEAPON (2) ------- (None) > --- INVENTORY (20) --- Ion Engine Light Ion Engine Improved Heat Sink High-capacity Storage Unit High-capacity Matter Pod (200) Propulsion Shielding Propulsion Shielding Propulsion Shielding Small Laser Small Laser Small Laser Mini Grenade Launcher Mini Grenade Launcher Mini Grenade Launcher Datajack Peak State ------------ > --- POWER ------------ Ion Engine > --- PROPULSION ------- Light Treads Light Treads > --- UTILITY ---------- High-capacity Storage Unit High-capacity Storage Unit > --- WEAPON ----------- Light Assault Rifle Mini Grenade Launcher > --- INVENTORY -------- Ion Engine Light Ion Engine Compact Wheel Compact Wheel Improved Heat Sink High-capacity Storage Unit High-capacity Matter Pod Propulsion Shielding Propulsion Shielding Propulsion Shielding Small Laser Small Laser Small Laser Mini Grenade Launcher Mini Grenade Launcher Mini Grenade Launcher Datajack [Rating: 10] Favorites ----------- Power Ion Engine Engine Ion Engine Propulsion Light Treads Treads Light Treads Leg Aluminum Leg Wheel Compact Wheel Utility High-capacity Storage Unit Storage High-capacity Storage Unit Protection Propulsion Shielding Weapon Light Assault Rifle Ballistic Gun Light Assault Rifle Launcher Mini Grenade Launcher Build | -11 -10 -10 ------- Run | Scr Mat Min Slots Evolved . | . . . Power . | . . . Propulsion . | . . . Utility . | . . . Weapon . | . . . Parts Attached 11 | 2 6 3 Power 2 | . 1 1 Engine 2 | . 1 1 Core . | . . . Reactor . | . . . Propulsion 4 | 2 . 2 Treads 2 | 2 . . Leg . | . . . Wheel 2 | . . 2 Hover . | . . . Flight . | . . . Utility 3 | . 3 . Device . | . . . Storage 2 | . 2 . Processor . | . . . Hackware . | . . . Protection 1 | . 1 . Artifact . | . . . Weapon 2 | . 2 . Energy Gun . | . . . Energy Cannon . | . . . Ballistic Gun 1 | . 1 . Ballistic Cannon . | . . . Launcher 1 | . 1 . Special Weapon . | . . . Impact Weapon . | . . . Slashing Weapon . | . . . Piercing Weapon . | . . . Special Melee Weapon . | . . . Unidentified Prototypes . | . . . Parts Lost 9 | . 2 7 Power 1 | . . 1 Propulsion 4 | . . 4 Utility . | . . . Weapon 4 | . 2 2 Highest Loss Streak 6 | . 1 6 Average Slot Usage (%) 97 | . 97 95 Engine 13 | . 13 14 Treads 25 | . 28 14 Wheel 1 | . . 9 Storage 27 | . 27 28 Ballistic Gun 23 | . 26 13 Launcher 2 | . . 14 Naked Turns . | . . . Heaviest Build 72 | 12 72 71 Greatest Support 40 | 40 40 40 Greatest Overweight (x) 22 | . 1 22 Average Overweight (x) 1 | . . 3 Largest Inventory Capacity 20 | 6 20 20 Average Capacity 19 | 6 19 20 Most Carried 18 | 6 18 17 Average Carried 12 | 6 11 16 Final Capacity 20 | 6 20 20 Final Carried 17 | 6 17 15 Class Distribution -------------------- 96% | Hauler-Mutant 3% | Mutant Dominant Class ---------------- Hauler-Mutant | -10/Materials Hauler-Mutant | -10/Mines Resources | -11 -10 -10 ----------- Run | Scr Mat Min Matter Collected 803 | 181 525 97 Remotely . | . . . Salvage Created 748 | . 711 37 Parts 45 | . 37 8 Haulers Intercepted 2 | . 2 . Recyclers Shooed . | . . . Parts Field Recycled . | . . . Retrieved Matter . | . . . Parts Self-Destructed . | . . . Prevented . | . . . Kills | -11 -10 -10 ------- Run | Scr Mat Min Combat Hostiles Destroyed 22 | . 13 9 Guns 13 | . 13 . AOE 9 | . . 9 Classes Destroyed 6 | . 4 2 Worker 2 | . 1 1 Hauler 2 | . 2 . Operator 1 | . 1 . Swarmer 6 | . . 6 Grunt 13 | . 13 . Assembled 3 | . . 3 Best Kill Streak 4 | . 3 4 Combat Bots Only 3 | . 3 3 Max Kills in Single Turn 3 | . 1 3 Gunslinging . | . . . Exploded 2 | . . 2 Melee . | . . . Uniques/NPCs Destroyed . | . . . Combat | -11 -10 -10 -------- Run | Scr Mat Min Damage Taken 1212 | . 716 496 Core 266 | . 146 120 Absorbed by Shields . | . . . Core Remaining (%) 100 | 100 . . Volleys Fired 80 | . 67 13 Largest 2 | . 2 2 Hottest 50 | . 40 50 Shots Fired 145 | . 130 15 Gun 132 | . 130 2 Cannon . | . . . Launcher 13 | . . 13 Special . | . . . Kinetic 132 | . 130 2 Thermal . | . . . Explosive 13 | . . 13 Electromagnetic . | . . . Robot Hit Streak 25 | . 25 13 Robot Miss Streak 3 | . 3 3 Penetration Max . | . . . Secondary Targets 3 | . 3 . Max Gunslinging Chain 1 | . 1 . Shots Hit Robots 110 | . 101 9 Core Hits 52 | . 39 13 Critical Hits . | . . . Critical Kills . | . . . Critical Parts Destroyed . | . . . Melee Attacks . | . . . Impact . | . . . Slashing . | . . . Piercing . | . . . Sneak Attacks . | . . . Combat Hostiles . | . . . Follow-up Attacks . | . . . Damage Inflicted 1705 | . 1004 701 Guns 994 | . 981 13 Cannons . | . . . Explosions 688 | . . 688 Melee . | . . . Ramming 23 | . 23 . Kinetic 994 | . 981 13 Thermal . | . . . Explosive 688 | . . 688 Electromagnetic . | . . . Impact . | . . . Slashing . | . . . Piercing . | . . . Highest Corruption 1 | . 1 1 Average Corruption 1 | . 1 1 Corruption Purged . | . . . Effects 5 | . 3 2 Message Errors 1 | . . 1 Energy Discharges 2 | . 2 . Data Loss (minor) 1 | . . 1 Targeting Errors 1 | . 1 . Overload Shots . | . . . Overflow Damage 22 | . . 22 Projectiles . | . . . Explosions 22 | . . 22 Melee . | . . . Knockbacks . | . . . Impact . | . . . Kinetic . | . . . Secondary . | . . . Self-Inflicted Damage 158 | . . 158 Shots 5 | . . 5 Rammed 3 | . 3 . Targets Rammed 3 | . 3 . Kicked . | . . . Crushed . | . . . Highest Temperature 22 | . 22 10 Average Temperature 7 | . 7 7 Received Heat Transfer 461 | . 381 80 Siege Activations . | . . . Robots Corrupted . | . . . Combat Hostiles . | . . . Parts Fried . | . . . Impact Corruptions . | . . . Robots Melted . | . . . Combat Hostiles . | . . . Parts Melted . | . . . Heat Transferred . | . . . Parts Sabotaged . | . . . Parts Stolen . | . . . Parts Stripped . | . . . Power Chain Reactions . | . . . Missiles Intercepted . | . . . Alert | -11 -10 -10 ------- Run | Scr Mat Min Peak Influence 183 | . 183 145 Initial 4 | . . 4 Average 62 | . 49 124 Maximum Alert Level . | . . . Low Security (%) 100 | 100 100 100 Level 1 . | . . . Level 2 . | . . . Level 3 . | . . . Level 4 . | . . . Level 5 . | . . . High Security . | . . . Max Security . | . . . Squads Dispatched 4 | . 4 . Investigation 1 | . 1 . Extermination . | . . . Reinforcement 3 | . 3 . Assault . | . . . Garrison . | . . . Intercept . | . . . Construction Impeded . | . . . Haulers Reinforced . | . . . Stealth | -11 -10 -10 --------- Run | Scr Mat Min Distress Signals 1 | . 1 . Communications Jammed . | . . . Distress Signals . | . . . Times Spotted 39 | . 24 15 Peak Tracking Total 6 | . 5 6 Tactical Retreats . | . . . Traps | -11 -10 -10 ------- Run | Scr Mat Min Traps Triggered 3 | . 3 . Indirectly . | . . . Trap Hack Attempts . | . . . Triggered . | . . . Disarmed . | . . . Reprogrammed . | . . . Reused . | . . . Traps Extracted . | . . . Installed . | . . . Triggered . | . . . Machines | -11 -10 -10 ---------- Run | Scr Mat Min Machines Disabled . | . . . Max in Single Turn . | . . . Machines Sabotaged . | . . . Garrisons Compromised . | . . . Overloaded Fab Kills . | . . . Fab Network Shutdowns . | . . . Hacking | -11 -10 -10 --------- Run | Scr Mat Min Machines Accessed 5 | . 5 . Terminals 4 | . 4 . Fabricators . | . . . Repair Stations 1 | . 1 . Recycling Units . | . . . Scanalyzers . | . . . Garrison Access . | . . . Total Hacks 14 | . 14 . Successful 7 | . 7 . Failed 6 | . 6 . Catastrophic . | . . . Database Lockouts 1 | . 1 . Manual 13 | . 13 . Terminals 12 | . 12 . Fabricators . | . . . Repair Stations 2 | . 2 . Recycling Units . | . . . Scanalyzers . | . . . Garrison Access . | . . . Terminal Hacks 3 | . 3 . Robot Analysis 1 | . 1 . Branch Access Points 1 | . 1 . Terminal Index 1 | . 1 . Fabricator Hacks . | . . . Repair Station Hacks 2 | . 2 . Scan Component 1 | . 1 . Repair 1 | . 1 . Recycling Unit Hacks . | . . . Scanalyzer . | . . . Garrison Access Hacks . | . . . Unauthorized Hacks 2 | . 2 . Terminals 2 | . 2 . Botnet 2 | . 2 . Fabricators . | . . . Repair Stations . | . . . Recycling Units . | . . . Scanalyzers . | . . . Garrison Access . | . . . Data Cores Recovered . | . . . Used . | . . . Hacking Detections 5 | . 5 . Full Trace Events 1 | . 1 . Feedback Events . | . . . Feedback Blocked . | . . . Robot Schematics Acquired . | . . . Robots Built . | . . . Matter . | . . . Time . | . . . Total Robot Build Rating . | . . . Part Schematics Acquired . | . . . Parts Built . | . . . Matter . | . . . Time . | . . . Total Part Build Rating . | . . . Parts Repaired 1 | . 1 . Time 26 | . 26 . Parts Recycled . | . . . Recycled Matter . | . . . Retrieved Matter . | . . . Retrieved Components . | . . . Parts Scanalyzed . | . . . Part Schematics Acquired . | . . . Parts Damaged . | . . . Bothacking | -11 -10 -10 ------------ Run | Scr Mat Min Used RIF Installer . | . . . Robots Hacked . | . . . Non-combat . | . . . Combat . | . . . Robot Hacks Applied . | . . . Relay Couplers Released . | . . . Robots Rewired . | . . . Allies Hacked . | . . . Hacks Repelled . | . . . Allies | -11 -10 -10 -------- Run | Scr Mat Min Total Allies . | . . . Largest Group . | . . . Highest-Rated Group . | . . . Highest-Rated Ally . | . . . Total Orders . | . . . Ally Attacks . | . . . Total Damage . | . . . Kills . | . . . Allies Corrupted . | . . . Allies Melted . | . . . Intel | -11 -10 -10 ------- Run | Scr Mat Min Robot Analysis Total 1 | . 1 . Derelict Logs Recovered 1 | . . 1 Drone Launches . | . . . Drone Recoveries . | . . . Exploration | -11 -10 -10 ------------- Run | Scr Mat Min Turns Passed 1604 | 3 1309 292 Spaces Moved 720 | 1 554 165 Core 1 | . . 1 Treads 589 | 1 554 34 Legs . | . . . Wheels 130 | . . 130 Hover . | . . . Flight . | . . . Fastest Speed 140 | 160 160 140 Average Speed 174 | 160 178 159 Slowest Speed 1150 | 160 180 1150 Overloaded Moves . | . . . Propulsion Burnouts . | . . . Robots Hopped . | . . . Cave-ins Triggered . | . . . Exploration Rate (%) 40 | 2 83 37 Regions Visited 2 Branch Regions 1 Pre-discovered Areas 1 | . . 1 Known Exits Taken 1 | . 1 . Unknown Exits Taken 1 | 1 . . Scrap Searched 1 | . . 1 Spaces Dug . | . . . Terrain Destroyed 126 | . . 126 Melee . | . . . Projectile . | . . . AOE 126 | . . 126 Terrain Rammed . | . . . Walls Destroyed . | . . . Machines Disabled . | . . . Actions | -11 -10 -10 --------- Run | Scr Mat Min Total 940 | 2 755 183 Wait 109 | . 108 1 Move 718 | . 553 165 Hop . | . . . Pick Up 14 | . 14 . Fast Attach 3 | . 3 . Attach 4 | . 2 2 Detach 1 | . 1 . Swap 4 | 2 1 1 Drop 4 | . 3 1 Fire 80 | . 67 13 Melee . | . . . Ram . | . . . Kick . | . . . Crush 3 | . 3 . Escape Stasis . | . . . Rewire . | . . . Trap . | . . . Miscellaneous . | . . . Route ------- -11/Scrapyard -10/Materials (discovered 4 exits: [*Mat x3] / *Min) -10/Mines (discovered 1 exit: Exi) History --------- Turn | Location | Event 4 | -11/Scrapyard | Discovered new exit (range 0) 4 | -11/Scrapyard | Entered Materials 279 | -10/Materials | Discovered new exit (range 11) 378 | -10/Materials | Build established: Hauler-Mutant 566 | -10/Materials | Repaired Ion Engine 684 | -10/Materials | Discovered new exit (range 7) 745 | -10/Materials | Core integrity fell below 50% 777 | -10/Materials | Discovered new exit (range 3) 1107 | -10/Materials | Discovered new exit (range 15) 1129 | -10/Materials | Identified exit to Mines 1226 | -10/Materials | Central database locked down 1313 | -10/Materials | Entered Mines 1314 | -10/Mines | Learned location of Storage (-7) 1326 | -10/Mines | Met a Derelict bent on vengeance 1394 | -10/Mines | Assembled infested the area 1399 | -10/Mines | Assisted by a Guerilla fighting off Assembled 1584 | -10/Mines | Identified exit to Exiles 1602 | -10/Mines | Core integrity fell below 20% 1605 | -10/Mines | Destroyed by as-56707 with Assembled Blade Last Messages --------------- 01470_ Acquired 26 matter. 01488_ Dropped Ion Engine. 01497_ ZYESHA:,K#HQ/HWWU/&B#6PL7 01575_ as-18743 destroyed. 01577_ Acquired 46 matter. 01581_ The unstable cave ceiling collapses. 01583_ Acquired 8 matter. 01584_ Acquired derelict log, extracted data. 01586_ Lgt. Assault Rifle destroyed. 01589_ as-99120 destroyed. 01591_ Com. Wheel destroyed. 01591_ Destroyed Com. Wheel. 01593_ as-35728 destroyed. 01597_ Com. Wheel destroyed. 01598_ Acquired 15 matter. 01600_ The unstable cave ceiling collapses. 01600_ Mni. Grenade Launcher destroyed. 01600_ Lgt. Treads destroyed. 01604_ Lgt. Ion Engine destroyed. Map ----- +----------------------------------------------------+ | ##???????????????????????????????????????????????? | | ?????????????????????????????????????????????????? | | ?????????????????????????????????????#???????????? | | ????##############??????????????????? ???????????? | | ????# #??????????????????? "??????????? | | ????# ########## #??????????????????# "??????????? | | ????# #????????# #???????????###????# "??????????? | | ###?# #????????# #??????????# ##???# ??????????? | | # ### #????????# ########### #???# """????????? | | ##???????# #???# """ #??????? | | """ #???????############ #???# """ #??????? | | """ #??????????????#### ##???# #??????? | | # """ #?????????????## ####????# """ #??????? | | # #????????????## ## ###### """ #??????? | | #???????????## # ## """ #??????? | | # ##??? ??????# # #??????? | | ## ###??? ?????# = # #?????????? | | ?####????? ???# * #?????????? | | ?????????? ??## ## % ##?????### | | ????????? ###; # * ##???## | | ????????? # # ###### ##### | | ???????? #?## ##???# | | ???????? ###?####??# ###### | | ???????? a #??????# #????### | | ???????? ! a ######## #??????# | | ???????? * # a@ |%*%=!!! = # #?????## | | ????????? !*a=== ## ######## ##????## | | ????????? %=%%###### a %=??????# #????## | | ??????????"##??????? ## ?????# #????# | | ??????????????????? ??# #????## #???# | | ??????????????????!a???## ?????### ##??# # | | ?????????????????%!*????# #??????#####?# #? | | ????????????????##=?????## ##???????????# #?? | | ?????????????????##???????# #????????????# #??? | | ??????????????????????????? #????????????## #???? | | ??????????????????????????? #?????????????###????? | | ??????????????????????????? #????????????????????? | | ??????????????????????????? #????????????????????? | | ??????????????????????????? #????????????????????? | | ????????????????????????????a????????????????????? | | ?????????????????????????????????????????????????? | | ?????????????????????????????????????????????????? | | ?????????????????????????????????????????????????? | | ?????????????????????????????????????????????????? | | ?????????????????????????????????????????????????? | | ?????????????????????????????????????????????????? | | ?????????????????????????????????????????????????? | | ?????????????????????????????????????????????????? | | ?????????????????????????????????????????????????? | | ?????????????????????????????????????????????????? | +----------------------------------------------------+ Best States ------------- Heat Dissipation 25 Energy Generation 10 Energy Capacity 250 Matter Stores 300 Matter Capacity 300 Sight Range 16 Terrain Scan Density 10 Propulsion Shielding 33 Evasion (%) 40 Recoil Reduction 2 Item Schematics ----------------- None Robot Schematics ------------------ None Fabricated ------------ Nothing Alien Tech Used ----------------- None Achievements -------------- None Challenges ------------ None Game ------ Seed PrecisionXenonBoregun Manual? 0 Play Time 00:11:16 Cumulative 225.4 hours Start 2021.01.08 @ 13:23:36 End 2021.01.08 @ 13:32:32 Sessions 1 Manual Loads 0 Difficulty Rogue Special Mode None Game No. 199 Rogue 70 Adventurer 63 Explorer 66 Win Type - Total 12 Types 11/0/0/1/0/0/0/0/0 Lore% 72 Gallery% 80 Achievement% 62 Wizard Run 0 Options --------- ASCII 0 Keyboard 0 Movement Numpad Keybinds 0 Fullscreen 2 Font 18/TerminusBold Map View 76x50 Tactical HUD 1 Map Filters NONE Filters NONE Steam 1 RUN: c50c7b78-3447-4324-81cc-2d18d843a49d